{"text_format":"1","workbook":"xlsx","n_sheets":3,"sheets":["الصفحة الرئيسية","توزيع الموظفين","مهام جميع الموظفين"],"not_rendered":{"charts":0,"images":0,"macros":1,"external_links":0,"defined_names":1,"comments":0,"pivot_tables":0},"unopened":[],"bounds":{"document_bytes":16777216,"sheet_cells":100000,"rows_first":2000,"rows_last":500,"rows_between":2000,"halvings":0,"cell_chars":16384,"cell_head_chars":4096},"cells_cut":0,"cells_raw":0,"read":"whole","date_system":"1900"}

{"sheet":"الصفحة الرئيسية","index":0,"n_rows":31,"n_cols":6,"rows_kept":31,"cut":false,"hidden":false,"merged":[[20,3,20,5]]}
[null,null,null,"عبداللطيف سليمان"]
[]
[]
[]
[]
[]
[]
[]
[]
[]
[]
[]
[]
[]
[]
[]
[]
[]
[]
[]
[null,null,null," مهام الموظف"]
[null,null,null," إختر اسم الموظف","مكان العمل","مجموع ساعات العمل"]
[null,null,null,"محمد سحاب",{"$f":"IFERROR(INDEX('توزيع الموظفين'!$C$2:$C$86,MATCH($D$23&ROW('توزيع الموظفين'!A1),'توزيع الموظفين'!$A$2:$A$86,0)),\"\")","v":"ورشة الإلكترونيات"},{"$f":"SUMIF('توزيع الموظفين'!$B$2:$B$86,D23,'توزيع الموظفين'!$D$2:$D$86)","v":18}]
[null,null,null,null,{"$f":"IFERROR(INDEX('توزيع الموظفين'!$C$2:$C$86,MATCH($D$23&ROW('توزيع الموظفين'!A2),'توزيع الموظفين'!$A$2:$A$86,0)),\"\")","v":"ورشة الإلكترونيات"}]
[null,null,null,null,{"$f":"IFERROR(INDEX('توزيع الموظفين'!$C$2:$C$86,MATCH($D$23&ROW('توزيع الموظفين'!A3),'توزيع الموظفين'!$A$2:$A$86,0)),\"\")","v":"ورشة الإجهزة "}]
[null,null,null,null,{"$f":"IFERROR(INDEX('توزيع الموظفين'!$C$2:$C$86,MATCH($D$23&ROW('توزيع الموظفين'!A4),'توزيع الموظفين'!$A$2:$A$86,0)),\"\")","v":"ورشة الأساسيات"}]
[null,null,null,null,{"$f":"IFERROR(INDEX('توزيع الموظفين'!$C$2:$C$86,MATCH($D$23&ROW('توزيع الموظفين'!A5),'توزيع الموظفين'!$A$2:$A$86,0)),\"\")","v":"ورشة الأساسيات"}]
[null,null,null,null,{"$f":"IFERROR(INDEX('توزيع الموظفين'!$C$2:$C$86,MATCH($D$23&ROW('توزيع الموظفين'!A6),'توزيع الموظفين'!$A$2:$A$86,0)),\"\")","v":"ورشة الأساسيات"}]
[null,null,null,null,{"$f":"IFERROR(INDEX('توزيع الموظفين'!$C$2:$C$86,MATCH($D$23&ROW('توزيع الموظفين'!A7),'توزيع الموظفين'!$A$2:$A$86,0)),\"\")","v":""}]
[null,null,null,null,{"$f":"IFERROR(INDEX('توزيع الموظفين'!$C$2:$C$86,MATCH($D$23&ROW('توزيع الموظفين'!A8),'توزيع الموظفين'!$A$2:$A$86,0)),\"\")","v":""}]
[null,null,null,null,{"$f":"IFERROR(INDEX('توزيع الموظفين'!$C$2:$C$86,MATCH($D$23&ROW('توزيع الموظفين'!A9),'توزيع الموظفين'!$A$2:$A$86,0)),\"\")","v":""}]

{"sheet":"توزيع الموظفين","index":1,"n_rows":86,"n_cols":7,"rows_kept":86,"cut":false,"hidden":false,"merged":[]}
[null,"اسم الموظف","مكان العمل","عدد الساعات",null,null,"أسماء الموظفين"]
[{"$f":"B2&COUNTIF($B$2:B2,B2)","v":"عبدالرحمن ناصر1"},"عبدالرحمن ناصر","ورشة اللحام1",4,null,null,"عبدالرحمن ناصر"]
[{"$f":"B3&COUNTIF($B$2:B3,B3)","v":"عبدالرحمن ناصر2"},"عبدالرحمن ناصر","ورشة اللحام1",4,null,null,"خالد ناصر"]
[{"$f":"B4&COUNTIF($B$2:B4,B4)","v":"عبدالرحمن ناصر3"},"عبدالرحمن ناصر","ورشة اللحام1",4,null,null,"امين تركي"]
[{"$f":"B5&COUNTIF($B$2:B5,B5)","v":"عبدالرحمن ناصر4"},"عبدالرحمن ناصر","ورشة اللحام1",4,null,null,"عبداللطيف سليمان"]
[{"$f":"B6&COUNTIF($B$2:B6,B6)","v":"عبدالرحمن ناصر5"},"عبدالرحمن ناصر","ورشة اللحام1",4,null,null,"عبدالرحمن حربي"]
[{"$f":"B7&COUNTIF($B$2:B7,B7)","v":"امين تركي1"},"امين تركي","ورشة اللحام2",4,null,null,"ناصر راشد"]
[{"$f":"B8&COUNTIF($B$2:B8,B8)","v":"امين تركي2"},"امين تركي","ورشة اللحام2",4,null,null,"ابراهيم فارس"]
[{"$f":"B9&COUNTIF($B$2:B9,B9)","v":"امين تركي3"},"امين تركي","ورشة اللحام2",4,null,null,"طارق سعد"]
[{"$f":"B10&COUNTIF($B$2:B10,B10)","v":"امين تركي4"},"امين تركي","ورشة اللحام2",4,null,null,"علي فريد"]
[{"$f":"B11&COUNTIF($B$2:B11,B11)","v":"امين تركي5"},"امين تركي","ورشة اللحام2",4,null,null,"عبدالعزيز راضي"]
[{"$f":"B12&COUNTIF($B$2:B12,B12)","v":"عبدالرحمن حربي1"},"عبدالرحمن حربي","ورشة اللحام",4,null,null,"حسن راشد"]
[{"$f":"B13&COUNTIF($B$2:B13,B13)","v":"خالد ناصر1"},"خالد ناصر","ورشة اللحام1",4,null,null,"محمد سحاب"]
[{"$f":"B14&COUNTIF($B$2:B14,B14)","v":"عبداللطيف سليمان1"},"عبداللطيف سليمان","ورشة اللحام2",4,null,null,"محمد حدو"]
[{"$f":"B15&COUNTIF($B$2:B15,B15)","v":"عبداللطيف سليمان2"},"عبداللطيف سليمان","ورشة اللحام2",4,null,null,"خالد مطوع"]
[{"$f":"B16&COUNTIF($B$2:B16,B16)","v":"ابراهيم فارس1"},"ابراهيم فارس","ورشة الكهرباء",3,null,null,"عبداللة سيف"]
[{"$f":"B17&COUNTIF($B$2:B17,B17)","v":"ابراهيم فارس2"},"ابراهيم فارس","ورشة الكهرباء",3,null,null,"فهد محمد"]
[{"$f":"B18&COUNTIF($B$2:B18,B18)","v":"طارق سعد1"},"طارق سعد","ورشة الكهرباء",3]
[{"$f":"B19&COUNTIF($B$2:B19,B19)","v":"طارق سعد2"},"طارق سعد","ورشة الكهرباء",3]
[{"$f":"B20&COUNTIF($B$2:B20,B20)","v":"عبدالرحمن حربي2"},"عبدالرحمن حربي","ورشة الكهرباء",3]
[{"$f":"B21&COUNTIF($B$2:B21,B21)","v":"عبدالرحمن حربي3"},"عبدالرحمن حربي","ورشة الكهرباء",3]
[{"$f":"B22&COUNTIF($B$2:B22,B22)","v":"ابراهيم فارس3"},"ابراهيم فارس","ورشة التمديدات",2]
[{"$f":"B23&COUNTIF($B$2:B23,B23)","v":"خالد ناصر2"},"خالد ناصر","ورشة التمديدات",2]
[{"$f":"B24&COUNTIF($B$2:B24,B24)","v":"ابراهيم فارس4"},"ابراهيم فارس","ورشة التمديدات",2]
[{"$f":"B25&COUNTIF($B$2:B25,B25)","v":"ناصر راشد1"},"ناصر راشد","ورشة التمديدات",2]
[{"$f":"B26&COUNTIF($B$2:B26,B26)","v":"ناصر راشد2"},"ناصر راشد","ورشة التمديدات",2]
[{"$f":"B27&COUNTIF($B$2:B27,B27)","v":"عبداللطيف سليمان3"},"عبداللطيف سليمان","ورشة التمديدات",2]
[{"$f":"B28&COUNTIF($B$2:B28,B28)","v":"فهد محمد1"},"فهد محمد","ورشة التمديدات",2]
[{"$f":"B29&COUNTIF($B$2:B29,B29)","v":"عبدالرحمن حربي4"},"عبدالرحمن حربي","ورشة التمديدات",2]
[{"$f":"B30&COUNTIF($B$2:B30,B30)","v":"عبدالرحمن حربي5"},"عبدالرحمن حربي","ورشة التمديدات",2]
[{"$f":"B31&COUNTIF($B$2:B31,B31)","v":"ناصر راشد3"},"ناصر راشد","ورشة التمديدات",2]
[{"$f":"B32&COUNTIF($B$2:B32,B32)","v":"علي فريد1"},"علي فريد","ورشة التمديدات",2]
[{"$f":"B33&COUNTIF($B$2:B33,B33)","v":"علي فريد2"},"علي فريد","ورشة التمديدات",2]
[{"$f":"B34&COUNTIF($B$2:B34,B34)","v":"ناصر راشد4"},"ناصر راشد","ورشة التمديدات",2]
[{"$f":"B35&COUNTIF($B$2:B35,B35)","v":"ناصر راشد5"},"ناصر راشد","ورشة التمديدات",2]
[{"$f":"B36&COUNTIF($B$2:B36,B36)","v":"ناصر راشد6"},"ناصر راشد","ورشة التمديدات",2]
[{"$f":"B37&COUNTIF($B$2:B37,B37)","v":"طارق سعد3"},"طارق سعد","ورشة التمديدات",2]
[{"$f":"B38&COUNTIF($B$2:B38,B38)","v":"طارق سعد4"},"طارق سعد","ورشة التمديدات",2]
[{"$f":"B39&COUNTIF($B$2:B39,B39)","v":"طارق سعد5"},"طارق سعد","ورشة التمديدات",2]
[{"$f":"B40&COUNTIF($B$2:B40,B40)","v":"طارق سعد6"},"طارق سعد","ورشة التمديدات",2]
[{"$f":"B41&COUNTIF($B$2:B41,B41)","v":"طارق سعد7"},"طارق سعد","ورشة التمديدات",2]
[{"$f":"B42&COUNTIF($B$2:B42,B42)","v":"طارق سعد8"},"طارق سعد","ورشة التمديدات",2]
[{"$f":"B43&COUNTIF($B$2:B43,B43)","v":"حسن راشد1"},"حسن راشد","ورشة الإلكترونيات",2]
[{"$f":"B44&COUNTIF($B$2:B44,B44)","v":"حسن راشد2"},"حسن راشد","ورشة الإلكترونيات",2]
[{"$f":"B45&COUNTIF($B$2:B45,B45)","v":"محمد سحاب1"},"محمد سحاب","ورشة الإلكترونيات",2]
[{"$f":"B46&COUNTIF($B$2:B46,B46)","v":"محمد سحاب2"},"محمد سحاب","ورشة الإلكترونيات",2]
[{"$f":"B47&COUNTIF($B$2:B47,B47)","v":"محمد سحاب3"},"محمد سحاب","ورشة الإجهزة ",2]
[{"$f":"B48&COUNTIF($B$2:B48,B48)","v":"حسن راشد3"},"حسن راشد","ورشة الإجهزة ",2]
[{"$f":"B49&COUNTIF($B$2:B49,B49)","v":"حسن راشد4"},"حسن راشد","ورشة الإجهزة ",2]
[{"$f":"B50&COUNTIF($B$2:B50,B50)","v":"حسن راشد5"},"حسن راشد","ورشة الإجهزة ",2]
[{"$f":"B51&COUNTIF($B$2:B51,B51)","v":"حسن راشد6"},"حسن راشد","ورشة الإجهزة ",2]
[{"$f":"B52&COUNTIF($B$2:B52,B52)","v":"حسن راشد7"},"حسن راشد","ورشة الإجهزة ",2]
[{"$f":"B53&COUNTIF($B$2:B53,B53)","v":"حسن راشد8"},"حسن راشد","ورشة الإجهزة ",2]
[{"$f":"B54&COUNTIF($B$2:B54,B54)","v":"حسن راشد9"},"حسن راشد","ورشة الإجهزة ",2]
[{"$f":"B55&COUNTIF($B$2:B55,B55)","v":"عبدالعزيز راضي1"},"عبدالعزيز راضي","ورشة الدوائر الرقمية ",3]
[{"$f":"B56&COUNTIF($B$2:B56,B56)","v":"عبدالعزيز راضي2"},"عبدالعزيز راضي","ورشة الدوائر الرقمية ",3]
[{"$f":"B57&COUNTIF($B$2:B57,B57)","v":"عبدالعزيز راضي3"},"عبدالعزيز راضي","ورشة الدوائر الرقمية ",3]
[{"$f":"B58&COUNTIF($B$2:B58,B58)","v":"عبدالعزيز راضي4"},"عبدالعزيز راضي","ورشة الدوائر الرقمية ",3]
[{"$f":"B59&COUNTIF($B$2:B59,B59)","v":"عبدالعزيز راضي5"},"عبدالعزيز راضي","ورشة الدوائر الرقمية ",3]
[{"$f":"B60&COUNTIF($B$2:B60,B60)","v":"خالد مطوع1"},"خالد مطوع","ورشة الدوائر الرقمية ",2]
[{"$f":"B61&COUNTIF($B$2:B61,B61)","v":"خالد مطوع2"},"خالد مطوع","ورشة الدوائر الرقمية ",2]
[{"$f":"B62&COUNTIF($B$2:B62,B62)","v":"خالد مطوع3"},"خالد مطوع","ورشة الدوائر الرقمية ",2]
[{"$f":"B63&COUNTIF($B$2:B63,B63)","v":"محمد سحاب4"},"محمد سحاب","ورشة الأساسيات",4]
[{"$f":"B64&COUNTIF($B$2:B64,B64)","v":"محمد سحاب5"},"محمد سحاب","ورشة الأساسيات",4]
[{"$f":"B65&COUNTIF($B$2:B65,B65)","v":"محمد سحاب6"},"محمد سحاب","ورشة الأساسيات",4]
[{"$f":"B66&COUNTIF($B$2:B66,B66)","v":"ناصر راشد7"},"ناصر راشد","ورشة الأساسيات",4]
[{"$f":"B67&COUNTIF($B$2:B67,B67)","v":"ناصر راشد8"},"ناصر راشد","ورشة الأساسيات",4]
[{"$f":"B68&COUNTIF($B$2:B68,B68)","v":"فهد محمد2"},"فهد محمد","ورشة الأساسيات",4]
[{"$f":"B69&COUNTIF($B$2:B69,B69)","v":"محمد حدو1"},"محمد حدو","السلامة",2]
[{"$f":"B70&COUNTIF($B$2:B70,B70)","v":"محمد حدو2"},"محمد حدو","السلامة",2]
[{"$f":"B71&COUNTIF($B$2:B71,B71)","v":"محمد حدو3"},"محمد حدو","السلامة",2]
[{"$f":"B72&COUNTIF($B$2:B72,B72)","v":"علي فريد3"},"علي فريد","ورشة الصيانة",4]
[{"$f":"B73&COUNTIF($B$2:B73,B73)","v":"علي فريد4"},"علي فريد","ورشة الصيانة",4]
[{"$f":"B74&COUNTIF($B$2:B74,B74)","v":"علي فريد5"},"علي فريد","ورشة الصيانة",4]
[{"$f":"B75&COUNTIF($B$2:B75,B75)","v":"علي فريد6"},"علي فريد","ورشة الصيانة",4]
[{"$f":"B76&COUNTIF($B$2:B76,B76)","v":"خالد ناصر3"},"خالد ناصر","ورشة القوى",2]
[{"$f":"B77&COUNTIF($B$2:B77,B77)","v":"خالد ناصر4"},"خالد ناصر","ورشة القوى",2]
[{"$f":"B78&COUNTIF($B$2:B78,B78)","v":"خالد ناصر5"},"خالد ناصر","ورشة القوى",2]
[{"$f":"B79&COUNTIF($B$2:B79,B79)","v":"خالد ناصر6"},"خالد ناصر","ورشة القوى",2]
[{"$f":"B80&COUNTIF($B$2:B80,B80)","v":"خالد ناصر7"},"خالد ناصر","ورشة القوى",2]
[{"$f":"B81&COUNTIF($B$2:B81,B81)","v":"خالد ناصر8"},"خالد ناصر","ورشة القوى",2]
[{"$f":"B82&COUNTIF($B$2:B82,B82)","v":"عبداللة سيف1"},"عبداللة سيف","غرفة التحكم ",4]
[{"$f":"B83&COUNTIF($B$2:B83,B83)","v":"عبداللة سيف2"},"عبداللة سيف","غرفة التحكم ",4]
[{"$f":"B84&COUNTIF($B$2:B84,B84)","v":"محمد حدو4"},"محمد حدو","غرفة التحكم ",4]
[{"$f":"B85&COUNTIF($B$2:B85,B85)","v":"محمد حدو5"},"محمد حدو","غرفة التحكم ",4]
[{"$f":"B86&COUNTIF($B$2:B86,B86)","v":"محمد حدو6"},"محمد حدو","المستودع",6]

{"sheet":"مهام جميع الموظفين","index":2,"n_rows":23,"n_cols":12,"rows_kept":23,"cut":false,"hidden":false,"merged":[]}
["اسم الموظف","عبدالرحمن ناصر","خالد ناصر","امين تركي","عبداللطيف سليمان","عبدالرحمن حربي","ناصر راشد","ابراهيم فارس","طارق سعد","علي فريد","عبدالعزيز راضي","حسن راشد"]
["مجموع مدة العمل بالساعات",{"$f":"SUMIF('توزيع الموظفين'!$B$2:$B$86,B1,'توزيع الموظفين'!$D$2:$D$86)","v":20},{"$f":"SUMIF('توزيع الموظفين'!$B$2:$B$86,C1,'توزيع الموظفين'!$D$2:$D$86)","v":18},{"$f":"SUMIF('توزيع الموظفين'!$B$2:$B$86,D1,'توزيع الموظفين'!$D$2:$D$86)","v":20},{"$f":"SUMIF('توزيع الموظفين'!$B$2:$B$86,E1,'توزيع الموظفين'!$D$2:$D$86)","v":10},{"$f":"SUMIF('توزيع الموظفين'!$B$2:$B$86,F1,'توزيع الموظفين'!$D$2:$D$86)","v":14},{"$f":"SUMIF('توزيع الموظفين'!$B$2:$B$86,G1,'توزيع الموظفين'!$D$2:$D$86)","v":20},{"$f":"SUMIF('توزيع الموظفين'!$B$2:$B$86,H1,'توزيع الموظفين'!$D$2:$D$86)","v":10},{"$f":"SUMIF('توزيع الموظفين'!$B$2:$B$86,I1,'توزيع الموظفين'!$D$2:$D$86)","v":18},{"$f":"SUMIF('توزيع الموظفين'!$B$2:$B$86,J1,'توزيع الموظفين'!$D$2:$D$86)","v":20},{"$f":"SUMIF('توزيع الموظفين'!$B$2:$B$86,K1,'توزيع الموظفين'!$D$2:$D$86)","v":15},{"$f":"SUMIF('توزيع الموظفين'!$B$2:$B$86,L1,'توزيع الموظفين'!$D$2:$D$86)","v":18}]
["مكان العمل",{"$f":"IFERROR(VLOOKUP(B$1&ROW('توزيع الموظفين'!$A1),'توزيع الموظفين'!$A$1:$C$86,3,0),\"\")","v":"ورشة اللحام1"},{"$f":"IFERROR(VLOOKUP(C$1&ROW('توزيع الموظفين'!$A1),'توزيع الموظفين'!$A$1:$C$86,3,0),\"\")","v":"ورشة اللحام1"},{"$f":"IFERROR(VLOOKUP(D$1&ROW('توزيع الموظفين'!$A1),'توزيع الموظفين'!$A$1:$C$86,3,0),\"\")","v":"ورشة اللحام2"},{"$f":"IFERROR(VLOOKUP(E$1&ROW('توزيع الموظفين'!$A1),'توزيع الموظفين'!$A$1:$C$86,3,0),\"\")","v":"ورشة اللحام2"},{"$f":"IFERROR(VLOOKUP(F$1&ROW('توزيع الموظفين'!$A1),'توزيع الموظفين'!$A$1:$C$86,3,0),\"\")","v":"ورشة اللحام"},{"$f":"IFERROR(VLOOKUP(G$1&ROW('توزيع الموظفين'!$A1),'توزيع الموظفين'!$A$1:$C$86,3,0),\"\")","v":"ورشة التمديدات"},{"$f":"IFERROR(VLOOKUP(H$1&ROW('توزيع الموظفين'!$A1),'توزيع الموظفين'!$A$1:$C$86,3,0),\"\")","v":"ورشة الكهرباء"},{"$f":"IFERROR(VLOOKUP(I$1&ROW('توزيع الموظفين'!$A1),'توزيع الموظفين'!$A$1:$C$86,3,0),\"\")","v":"ورشة الكهرباء"},{"$f":"IFERROR(VLOOKUP(J$1&ROW('توزيع الموظفين'!$A1),'توزيع الموظفين'!$A$1:$C$86,3,0),\"\")","v":"ورشة التمديدات"},{"$f":"IFERROR(VLOOKUP(K$1&ROW('توزيع الموظفين'!$A1),'توزيع الموظفين'!$A$1:$C$86,3,0),\"\")","v":"ورشة الدوائر الرقمية "},{"$f":"IFERROR(VLOOKUP(L$1&ROW('توزيع الموظفين'!$A1),'توزيع الموظفين'!$A$1:$C$86,3,0),\"\")","v":"ورشة الإلكترونيات"}]
[null,{"$f":"IFERROR(VLOOKUP(B$1&ROW('توزيع الموظفين'!$A2),'توزيع الموظفين'!$A$1:$C$86,3,0),\"\")","v":"ورشة اللحام1"},{"$f":"IFERROR(VLOOKUP(C$1&ROW('توزيع الموظفين'!$A2),'توزيع الموظفين'!$A$1:$C$86,3,0),\"\")","v":"ورشة التمديدات"},{"$f":"IFERROR(VLOOKUP(D$1&ROW('توزيع الموظفين'!$A2),'توزيع الموظفين'!$A$1:$C$86,3,0),\"\")","v":"ورشة اللحام2"},{"$f":"IFERROR(VLOOKUP(E$1&ROW('توزيع الموظفين'!$A2),'توزيع الموظفين'!$A$1:$C$86,3,0),\"\")","v":"ورشة اللحام2"},{"$f":"IFERROR(VLOOKUP(F$1&ROW('توزيع الموظفين'!$A2),'توزيع الموظفين'!$A$1:$C$86,3,0),\"\")","v":"ورشة الكهرباء"},{"$f":"IFERROR(VLOOKUP(G$1&ROW('توزيع الموظفين'!$A2),'توزيع الموظفين'!$A$1:$C$86,3,0),\"\")","v":"ورشة التمديدات"},{"$f":"IFERROR(VLOOKUP(H$1&ROW('توزيع الموظفين'!$A2),'توزيع الموظفين'!$A$1:$C$86,3,0),\"\")","v":"ورشة الكهرباء"},{"$f":"IFERROR(VLOOKUP(I$1&ROW('توزيع الموظفين'!$A2),'توزيع الموظفين'!$A$1:$C$86,3,0),\"\")","v":"ورشة الكهرباء"},{"$f":"IFERROR(VLOOKUP(J$1&ROW('توزيع الموظفين'!$A2),'توزيع الموظفين'!$A$1:$C$86,3,0),\"\")","v":"ورشة التمديدات"},{"$f":"IFERROR(VLOOKUP(K$1&ROW('توزيع الموظفين'!$A2),'توزيع الموظفين'!$A$1:$C$86,3,0),\"\")","v":"ورشة الدوائر الرقمية "},{"$f":"IFERROR(VLOOKUP(L$1&ROW('توزيع الموظفين'!$A2),'توزيع الموظفين'!$A$1:$C$86,3,0),\"\")","v":"ورشة الإلكترونيات"}]
[null,{"$f":"IFERROR(VLOOKUP(B$1&ROW('توزيع الموظفين'!$A3),'توزيع الموظفين'!$A$1:$C$86,3,0),\"\")","v":"ورشة اللحام1"},{"$f":"IFERROR(VLOOKUP(C$1&ROW('توزيع الموظفين'!$A3),'توزيع الموظفين'!$A$1:$C$86,3,0),\"\")","v":"ورشة القوى"},{"$f":"IFERROR(VLOOKUP(D$1&ROW('توزيع الموظفين'!$A3),'توزيع الموظفين'!$A$1:$C$86,3,0),\"\")","v":"ورشة اللحام2"},{"$f":"IFERROR(VLOOKUP(E$1&ROW('توزيع الموظفين'!$A3),'توزيع الموظفين'!$A$1:$C$86,3,0),\"\")","v":"ورشة التمديدات"},{"$f":"IFERROR(VLOOKUP(F$1&ROW('توزيع الموظفين'!$A3),'توزيع الموظفين'!$A$1:$C$86,3,0),\"\")","v":"ورشة الكهرباء"},{"$f":"IFERROR(VLOOKUP(G$1&ROW('توزيع الموظفين'!$A3),'توزيع الموظفين'!$A$1:$C$86,3,0),\"\")","v":"ورشة التمديدات"},{"$f":"IFERROR(VLOOKUP(H$1&ROW('توزيع الموظفين'!$A3),'توزيع الموظفين'!$A$1:$C$86,3,0),\"\")","v":"ورشة التمديدات"},{"$f":"IFERROR(VLOOKUP(I$1&ROW('توزيع الموظفين'!$A3),'توزيع الموظفين'!$A$1:$C$86,3,0),\"\")","v":"ورشة التمديدات"},{"$f":"IFERROR(VLOOKUP(J$1&ROW('توزيع الموظفين'!$A3),'توزيع الموظفين'!$A$1:$C$86,3,0),\"\")","v":"ورشة الصيانة"},{"$f":"IFERROR(VLOOKUP(K$1&ROW('توزيع الموظفين'!$A3),'توزيع الموظفين'!$A$1:$C$86,3,0),\"\")","v":"ورشة الدوائر الرقمية "},{"$f":"IFERROR(VLOOKUP(L$1&ROW('توزيع الموظفين'!$A3),'توزيع الموظفين'!$A$1:$C$86,3,0),\"\")","v":"ورشة الإجهزة "}]
[null,{"$f":"IFERROR(VLOOKUP(B$1&ROW('توزيع الموظفين'!$A4),'توزيع الموظفين'!$A$1:$C$86,3,0),\"\")","v":"ورشة اللحام1"},{"$f":"IFERROR(VLOOKUP(C$1&ROW('توزيع الموظفين'!$A4),'توزيع الموظفين'!$A$1:$C$86,3,0),\"\")","v":"ورشة القوى"},{"$f":"IFERROR(VLOOKUP(D$1&ROW('توزيع الموظفين'!$A4),'توزيع الموظفين'!$A$1:$C$86,3,0),\"\")","v":"ورشة اللحام2"},{"$f":"IFERROR(VLOOKUP(E$1&ROW('توزيع الموظفين'!$A4),'توزيع الموظفين'!$A$1:$C$86,3,0),\"\")","v":""},{"$f":"IFERROR(VLOOKUP(F$1&ROW('توزيع الموظفين'!$A4),'توزيع الموظفين'!$A$1:$C$86,3,0),\"\")","v":"ورشة التمديدات"},{"$f":"IFERROR(VLOOKUP(G$1&ROW('توزيع الموظفين'!$A4),'توزيع الموظفين'!$A$1:$C$86,3,0),\"\")","v":"ورشة التمديدات"},{"$f":"IFERROR(VLOOKUP(H$1&ROW('توزيع الموظفين'!$A4),'توزيع الموظفين'!$A$1:$C$86,3,0),\"\")","v":"ورشة التمديدات"},{"$f":"IFERROR(VLOOKUP(I$1&ROW('توزيع الموظفين'!$A4),'توزيع الموظفين'!$A$1:$C$86,3,0),\"\")","v":"ورشة التمديدات"},{"$f":"IFERROR(VLOOKUP(J$1&ROW('توزيع الموظفين'!$A4),'توزيع الموظفين'!$A$1:$C$86,3,0),\"\")","v":"ورشة الصيانة"},{"$f":"IFERROR(VLOOKUP(K$1&ROW('توزيع الموظفين'!$A4),'توزيع الموظفين'!$A$1:$C$86,3,0),\"\")","v":"ورشة الدوائر الرقمية "},{"$f":"IFERROR(VLOOKUP(L$1&ROW('توزيع الموظفين'!$A4),'توزيع الموظفين'!$A$1:$C$86,3,0),\"\")","v":"ورشة الإجهزة "}]
[null,{"$f":"IFERROR(VLOOKUP(B$1&ROW('توزيع الموظفين'!$A5),'توزيع الموظفين'!$A$1:$C$86,3,0),\"\")","v":"ورشة اللحام1"},{"$f":"IFERROR(VLOOKUP(C$1&ROW('توزيع الموظفين'!$A5),'توزيع الموظفين'!$A$1:$C$86,3,0),\"\")","v":"ورشة القوى"},{"$f":"IFERROR(VLOOKUP(D$1&ROW('توزيع الموظفين'!$A5),'توزيع الموظفين'!$A$1:$C$86,3,0),\"\")","v":"ورشة اللحام2"},{"$f":"IFERROR(VLOOKUP(E$1&ROW('توزيع الموظفين'!$A5),'توزيع الموظفين'!$A$1:$C$86,3,0),\"\")","v":""},{"$f":"IFERROR(VLOOKUP(F$1&ROW('توزيع الموظفين'!$A5),'توزيع الموظفين'!$A$1:$C$86,3,0),\"\")","v":"ورشة التمديدات"},{"$f":"IFERROR(VLOOKUP(G$1&ROW('توزيع الموظفين'!$A5),'توزيع الموظفين'!$A$1:$C$86,3,0),\"\")","v":"ورشة التمديدات"},{"$f":"IFERROR(VLOOKUP(H$1&ROW('توزيع الموظفين'!$A5),'توزيع الموظفين'!$A$1:$C$86,3,0),\"\")","v":""},{"$f":"IFERROR(VLOOKUP(I$1&ROW('توزيع الموظفين'!$A5),'توزيع الموظفين'!$A$1:$C$86,3,0),\"\")","v":"ورشة التمديدات"},{"$f":"IFERROR(VLOOKUP(J$1&ROW('توزيع الموظفين'!$A5),'توزيع الموظفين'!$A$1:$C$86,3,0),\"\")","v":"ورشة الصيانة"},{"$f":"IFERROR(VLOOKUP(K$1&ROW('توزيع الموظفين'!$A5),'توزيع الموظفين'!$A$1:$C$86,3,0),\"\")","v":"ورشة الدوائر الرقمية "},{"$f":"IFERROR(VLOOKUP(L$1&ROW('توزيع الموظفين'!$A5),'توزيع الموظفين'!$A$1:$C$86,3,0),\"\")","v":"ورشة الإجهزة "}]
[null,{"$f":"IFERROR(VLOOKUP(B$1&ROW('توزيع الموظفين'!$A6),'توزيع الموظفين'!$A$1:$C$86,3,0),\"\")","v":""},{"$f":"IFERROR(VLOOKUP(C$1&ROW('توزيع الموظفين'!$A6),'توزيع الموظفين'!$A$1:$C$86,3,0),\"\")","v":"ورشة القوى"},{"$f":"IFERROR(VLOOKUP(D$1&ROW('توزيع الموظفين'!$A6),'توزيع الموظفين'!$A$1:$C$86,3,0),\"\")","v":""},{"$f":"IFERROR(VLOOKUP(E$1&ROW('توزيع الموظفين'!$A6),'توزيع الموظفين'!$A$1:$C$86,3,0),\"\")","v":""},{"$f":"IFERROR(VLOOKUP(F$1&ROW('توزيع الموظفين'!$A6),'توزيع الموظفين'!$A$1:$C$86,3,0),\"\")","v":""},{"$f":"IFERROR(VLOOKUP(G$1&ROW('توزيع الموظفين'!$A6),'توزيع الموظفين'!$A$1:$C$86,3,0),\"\")","v":"ورشة التمديدات"},{"$f":"IFERROR(VLOOKUP(H$1&ROW('توزيع الموظفين'!$A6),'توزيع الموظفين'!$A$1:$C$86,3,0),\"\")","v":""},{"$f":"IFERROR(VLOOKUP(I$1&ROW('توزيع الموظفين'!$A6),'توزيع الموظفين'!$A$1:$C$86,3,0),\"\")","v":"ورشة التمديدات"},{"$f":"IFERROR(VLOOKUP(J$1&ROW('توزيع الموظفين'!$A6),'توزيع الموظفين'!$A$1:$C$86,3,0),\"\")","v":"ورشة الصيانة"},{"$f":"IFERROR(VLOOKUP(K$1&ROW('توزيع الموظفين'!$A6),'توزيع الموظفين'!$A$1:$C$86,3,0),\"\")","v":""},{"$f":"IFERROR(VLOOKUP(L$1&ROW('توزيع الموظفين'!$A6),'توزيع الموظفين'!$A$1:$C$86,3,0),\"\")","v":"ورشة الإجهزة "}]
[null,{"$f":"IFERROR(VLOOKUP(B$1&ROW('توزيع الموظفين'!$A7),'توزيع الموظفين'!$A$1:$C$86,3,0),\"\")","v":""},{"$f":"IFERROR(VLOOKUP(C$1&ROW('توزيع الموظفين'!$A7),'توزيع الموظفين'!$A$1:$C$86,3,0),\"\")","v":"ورشة القوى"},{"$f":"IFERROR(VLOOKUP(D$1&ROW('توزيع الموظفين'!$A7),'توزيع الموظفين'!$A$1:$C$86,3,0),\"\")","v":""},{"$f":"IFERROR(VLOOKUP(E$1&ROW('توزيع الموظفين'!$A7),'توزيع الموظفين'!$A$1:$C$86,3,0),\"\")","v":""},{"$f":"IFERROR(VLOOKUP(F$1&ROW('توزيع الموظفين'!$A7),'توزيع الموظفين'!$A$1:$C$86,3,0),\"\")","v":""},{"$f":"IFERROR(VLOOKUP(G$1&ROW('توزيع الموظفين'!$A7),'توزيع الموظفين'!$A$1:$C$86,3,0),\"\")","v":"ورشة الأساسيات"},{"$f":"IFERROR(VLOOKUP(H$1&ROW('توزيع الموظفين'!$A7),'توزيع الموظفين'!$A$1:$C$86,3,0),\"\")","v":""},{"$f":"IFERROR(VLOOKUP(I$1&ROW('توزيع الموظفين'!$A7),'توزيع الموظفين'!$A$1:$C$86,3,0),\"\")","v":"ورشة التمديدات"},{"$f":"IFERROR(VLOOKUP(J$1&ROW('توزيع الموظفين'!$A7),'توزيع الموظفين'!$A$1:$C$86,3,0),\"\")","v":""},{"$f":"IFERROR(VLOOKUP(K$1&ROW('توزيع الموظفين'!$A7),'توزيع الموظفين'!$A$1:$C$86,3,0),\"\")","v":""},{"$f":"IFERROR(VLOOKUP(L$1&ROW('توزيع الموظفين'!$A7),'توزيع الموظفين'!$A$1:$C$86,3,0),\"\")","v":"ورشة الإجهزة "}]
[null,{"$f":"IFERROR(VLOOKUP(B$1&ROW('توزيع الموظفين'!$A8),'توزيع الموظفين'!$A$1:$C$86,3,0),\"\")","v":""},{"$f":"IFERROR(VLOOKUP(C$1&ROW('توزيع الموظفين'!$A8),'توزيع الموظفين'!$A$1:$C$86,3,0),\"\")","v":"ورشة القوى"},{"$f":"IFERROR(VLOOKUP(D$1&ROW('توزيع الموظفين'!$A8),'توزيع الموظفين'!$A$1:$C$86,3,0),\"\")","v":""},{"$f":"IFERROR(VLOOKUP(E$1&ROW('توزيع الموظفين'!$A8),'توزيع الموظفين'!$A$1:$C$86,3,0),\"\")","v":""},{"$f":"IFERROR(VLOOKUP(F$1&ROW('توزيع الموظفين'!$A8),'توزيع الموظفين'!$A$1:$C$86,3,0),\"\")","v":""},{"$f":"IFERROR(VLOOKUP(G$1&ROW('توزيع الموظفين'!$A8),'توزيع الموظفين'!$A$1:$C$86,3,0),\"\")","v":"ورشة الأساسيات"},{"$f":"IFERROR(VLOOKUP(H$1&ROW('توزيع الموظفين'!$A8),'توزيع الموظفين'!$A$1:$C$86,3,0),\"\")","v":""},{"$f":"IFERROR(VLOOKUP(I$1&ROW('توزيع الموظفين'!$A8),'توزيع الموظفين'!$A$1:$C$86,3,0),\"\")","v":"ورشة التمديدات"},{"$f":"IFERROR(VLOOKUP(J$1&ROW('توزيع الموظفين'!$A8),'توزيع الموظفين'!$A$1:$C$86,3,0),\"\")","v":""},{"$f":"IFERROR(VLOOKUP(K$1&ROW('توزيع الموظفين'!$A8),'توزيع الموظفين'!$A$1:$C$86,3,0),\"\")","v":""},{"$f":"IFERROR(VLOOKUP(L$1&ROW('توزيع الموظفين'!$A8),'توزيع الموظفين'!$A$1:$C$86,3,0),\"\")","v":"ورشة الإجهزة "}]
[null,{"$f":"IFERROR(VLOOKUP(B$1&ROW('توزيع الموظفين'!$A9),'توزيع الموظفين'!$A$1:$C$86,3,0),\"\")","v":""},{"$f":"IFERROR(VLOOKUP(C$1&ROW('توزيع الموظفين'!$A9),'توزيع الموظفين'!$A$1:$C$86,3,0),\"\")","v":""},{"$f":"IFERROR(VLOOKUP(D$1&ROW('توزيع الموظفين'!$A9),'توزيع الموظفين'!$A$1:$C$86,3,0),\"\")","v":""},{"$f":"IFERROR(VLOOKUP(E$1&ROW('توزيع الموظفين'!$A9),'توزيع الموظفين'!$A$1:$C$86,3,0),\"\")","v":""},{"$f":"IFERROR(VLOOKUP(F$1&ROW('توزيع الموظفين'!$A9),'توزيع الموظفين'!$A$1:$C$86,3,0),\"\")","v":""},{"$f":"IFERROR(VLOOKUP(G$1&ROW('توزيع الموظفين'!$A9),'توزيع الموظفين'!$A$1:$C$86,3,0),\"\")","v":""},{"$f":"IFERROR(VLOOKUP(H$1&ROW('توزيع الموظفين'!$A9),'توزيع الموظفين'!$A$1:$C$86,3,0),\"\")","v":""},{"$f":"IFERROR(VLOOKUP(I$1&ROW('توزيع الموظفين'!$A9),'توزيع الموظفين'!$A$1:$C$86,3,0),\"\")","v":""},{"$f":"IFERROR(VLOOKUP(J$1&ROW('توزيع الموظفين'!$A9),'توزيع الموظفين'!$A$1:$C$86,3,0),\"\")","v":""},{"$f":"IFERROR(VLOOKUP(K$1&ROW('توزيع الموظفين'!$A9),'توزيع الموظفين'!$A$1:$C$86,3,0),\"\")","v":""},{"$f":"IFERROR(VLOOKUP(L$1&ROW('توزيع الموظفين'!$A9),'توزيع الموظفين'!$A$1:$C$86,3,0),\"\")","v":"ورشة الإجهزة "}]
[null,null,{"$f":"IFERROR(VLOOKUP($L$2&ROW(#REF!),$A$1:$D$172,6,0),\"\")","v":""},{"$f":"IFERROR(VLOOKUP(#REF!&ROW(#REF!),$A$1:$D$172,6,0),\"\")","v":""},{"$f":"IFERROR(VLOOKUP($M$2&ROW(#REF!),$A$1:$D$172,6,0),\"\")","v":""},null,null,{"$f":"IFERROR(VLOOKUP(H$1&ROW(#REF!),$A$1:$D$172,6,0),\"\")","v":""},{"$f":"IFERROR(VLOOKUP(I$1&ROW(#REF!),$A$1:$D$172,6,0),\"\")","v":""},{"$f":"IFERROR(VLOOKUP(J$1&ROW(#REF!),$A$1:$D$172,6,0),\"\")","v":""},{"$f":"IFERROR(VLOOKUP(K$1&ROW(#REF!),$A$1:$D$172,6,0),\"\")","v":""},{"$f":"IFERROR(VLOOKUP(L$1&ROW(#REF!),$A$1:$D$172,6,0),\"\")","v":""}]
["اسم الموظف","محمد سحاب","محمد حدو","خالد مطوع","عبداللة سيف","فهد محمد"]
["مجموع مدة العمل بالساعات",{"$f":"SUMIF('توزيع الموظفين'!$B$2:$B$86,B13,'توزيع الموظفين'!$D$2:$D$86)","v":18},{"$f":"SUMIF('توزيع الموظفين'!$B$2:$B$86,C13,'توزيع الموظفين'!$D$2:$D$86)","v":20},{"$f":"SUMIF('توزيع الموظفين'!$B$2:$B$86,D13,'توزيع الموظفين'!$D$2:$D$86)","v":6},{"$f":"SUMIF('توزيع الموظفين'!$B$2:$B$86,E13,'توزيع الموظفين'!$D$2:$D$86)","v":8},{"$f":"SUMIF('توزيع الموظفين'!$B$2:$B$86,F13,'توزيع الموظفين'!$D$2:$D$86)","v":6}]
["مكان العمل",{"$f":"IFERROR(VLOOKUP(B$13&ROW('توزيع الموظفين'!$A1),'توزيع الموظفين'!$A$1:$C$86,3,0),\"\")","v":"ورشة الإلكترونيات"},{"$f":"IFERROR(VLOOKUP(C$13&ROW('توزيع الموظفين'!$A1),'توزيع الموظفين'!$A$1:$C$86,3,0),\"\")","v":"السلامة"},{"$f":"IFERROR(VLOOKUP(D$13&ROW('توزيع الموظفين'!$A1),'توزيع الموظفين'!$A$1:$C$86,3,0),\"\")","v":"ورشة الدوائر الرقمية "},{"$f":"IFERROR(VLOOKUP(E$13&ROW('توزيع الموظفين'!$A1),'توزيع الموظفين'!$A$1:$C$86,3,0),\"\")","v":"غرفة التحكم "},{"$f":"IFERROR(VLOOKUP(F$13&ROW('توزيع الموظفين'!$A1),'توزيع الموظفين'!$A$1:$C$86,3,0),\"\")","v":"ورشة التمديدات"}]
[null,{"$f":"IFERROR(VLOOKUP(B$13&ROW('توزيع الموظفين'!$A2),'توزيع الموظفين'!$A$1:$C$86,3,0),\"\")","v":"ورشة الإلكترونيات"},{"$f":"IFERROR(VLOOKUP(C$13&ROW('توزيع الموظفين'!$A2),'توزيع الموظفين'!$A$1:$C$86,3,0),\"\")","v":"السلامة"},{"$f":"IFERROR(VLOOKUP(D$13&ROW('توزيع الموظفين'!$A2),'توزيع الموظفين'!$A$1:$C$86,3,0),\"\")","v":"ورشة الدوائر الرقمية "},{"$f":"IFERROR(VLOOKUP(E$13&ROW('توزيع الموظفين'!$A2),'توزيع الموظفين'!$A$1:$C$86,3,0),\"\")","v":"غرفة التحكم "},{"$f":"IFERROR(VLOOKUP(F$13&ROW('توزيع الموظفين'!$A2),'توزيع الموظفين'!$A$1:$C$86,3,0),\"\")","v":"ورشة الأساسيات"}]
[null,{"$f":"IFERROR(VLOOKUP(B$13&ROW('توزيع الموظفين'!$A3),'توزيع الموظفين'!$A$1:$C$86,3,0),\"\")","v":"ورشة الإجهزة "},{"$f":"IFERROR(VLOOKUP(C$13&ROW('توزيع الموظفين'!$A3),'توزيع الموظفين'!$A$1:$C$86,3,0),\"\")","v":"السلامة"},{"$f":"IFERROR(VLOOKUP(D$13&ROW('توزيع الموظفين'!$A3),'توزيع الموظفين'!$A$1:$C$86,3,0),\"\")","v":"ورشة الدوائر الرقمية "},{"$f":"IFERROR(VLOOKUP(E$13&ROW('توزيع الموظفين'!$A3),'توزيع الموظفين'!$A$1:$C$86,3,0),\"\")","v":""},{"$f":"IFERROR(VLOOKUP(F$13&ROW('توزيع الموظفين'!$A3),'توزيع الموظفين'!$A$1:$C$86,3,0),\"\")","v":""}]
[null,{"$f":"IFERROR(VLOOKUP(B$13&ROW('توزيع الموظفين'!$A4),'توزيع الموظفين'!$A$1:$C$86,3,0),\"\")","v":"ورشة الأساسيات"},{"$f":"IFERROR(VLOOKUP(C$13&ROW('توزيع الموظفين'!$A4),'توزيع الموظفين'!$A$1:$C$86,3,0),\"\")","v":"غرفة التحكم "},{"$f":"IFERROR(VLOOKUP(D$13&ROW('توزيع الموظفين'!$A4),'توزيع الموظفين'!$A$1:$C$86,3,0),\"\")","v":""},{"$f":"IFERROR(VLOOKUP(E$13&ROW('توزيع الموظفين'!$A4),'توزيع الموظفين'!$A$1:$C$86,3,0),\"\")","v":""},{"$f":"IFERROR(VLOOKUP(F$13&ROW('توزيع الموظفين'!$A4),'توزيع الموظفين'!$A$1:$C$86,3,0),\"\")","v":""}]
[null,{"$f":"IFERROR(VLOOKUP(B$13&ROW('توزيع الموظفين'!$A5),'توزيع الموظفين'!$A$1:$C$86,3,0),\"\")","v":"ورشة الأساسيات"},{"$f":"IFERROR(VLOOKUP(C$13&ROW('توزيع الموظفين'!$A5),'توزيع الموظفين'!$A$1:$C$86,3,0),\"\")","v":"غرفة التحكم "},{"$f":"IFERROR(VLOOKUP(D$13&ROW('توزيع الموظفين'!$A5),'توزيع الموظفين'!$A$1:$C$86,3,0),\"\")","v":""},{"$f":"IFERROR(VLOOKUP(E$13&ROW('توزيع الموظفين'!$A5),'توزيع الموظفين'!$A$1:$C$86,3,0),\"\")","v":""},{"$f":"IFERROR(VLOOKUP(F$13&ROW('توزيع الموظفين'!$A5),'توزيع الموظفين'!$A$1:$C$86,3,0),\"\")","v":""}]
[null,{"$f":"IFERROR(VLOOKUP(B$13&ROW('توزيع الموظفين'!$A6),'توزيع الموظفين'!$A$1:$C$86,3,0),\"\")","v":"ورشة الأساسيات"},{"$f":"IFERROR(VLOOKUP(C$13&ROW('توزيع الموظفين'!$A6),'توزيع الموظفين'!$A$1:$C$86,3,0),\"\")","v":"المستودع"},{"$f":"IFERROR(VLOOKUP(D$13&ROW('توزيع الموظفين'!$A6),'توزيع الموظفين'!$A$1:$C$86,3,0),\"\")","v":""},{"$f":"IFERROR(VLOOKUP(E$13&ROW('توزيع الموظفين'!$A6),'توزيع الموظفين'!$A$1:$C$86,3,0),\"\")","v":""},{"$f":"IFERROR(VLOOKUP(F$13&ROW('توزيع الموظفين'!$A6),'توزيع الموظفين'!$A$1:$C$86,3,0),\"\")","v":""}]
[null,{"$f":"IFERROR(VLOOKUP(B$13&ROW('توزيع الموظفين'!$A7),'توزيع الموظفين'!$A$1:$C$86,3,0),\"\")","v":""},{"$f":"IFERROR(VLOOKUP(C$13&ROW('توزيع الموظفين'!$A7),'توزيع الموظفين'!$A$1:$C$86,3,0),\"\")","v":""},{"$f":"IFERROR(VLOOKUP(D$13&ROW('توزيع الموظفين'!$A7),'توزيع الموظفين'!$A$1:$C$86,3,0),\"\")","v":""},{"$f":"IFERROR(VLOOKUP(E$13&ROW('توزيع الموظفين'!$A7),'توزيع الموظفين'!$A$1:$C$86,3,0),\"\")","v":""},{"$f":"IFERROR(VLOOKUP(F$13&ROW('توزيع الموظفين'!$A7),'توزيع الموظفين'!$A$1:$C$86,3,0),\"\")","v":""}]
[null,{"$f":"IFERROR(VLOOKUP(B$13&ROW('توزيع الموظفين'!$A8),'توزيع الموظفين'!$A$1:$C$86,3,0),\"\")","v":""},{"$f":"IFERROR(VLOOKUP(C$13&ROW('توزيع الموظفين'!$A8),'توزيع الموظفين'!$A$1:$C$86,3,0),\"\")","v":""},{"$f":"IFERROR(VLOOKUP(D$13&ROW('توزيع الموظفين'!$A8),'توزيع الموظفين'!$A$1:$C$86,3,0),\"\")","v":""},{"$f":"IFERROR(VLOOKUP(E$13&ROW('توزيع الموظفين'!$A8),'توزيع الموظفين'!$A$1:$C$86,3,0),\"\")","v":""},{"$f":"IFERROR(VLOOKUP(F$13&ROW('توزيع الموظفين'!$A8),'توزيع الموظفين'!$A$1:$C$86,3,0),\"\")","v":""}]
[null,{"$f":"IFERROR(VLOOKUP(B$13&ROW('توزيع الموظفين'!$A9),'توزيع الموظفين'!$A$1:$C$86,3,0),\"\")","v":""},{"$f":"IFERROR(VLOOKUP(C$13&ROW('توزيع الموظفين'!$A9),'توزيع الموظفين'!$A$1:$C$86,3,0),\"\")","v":""},{"$f":"IFERROR(VLOOKUP(D$13&ROW('توزيع الموظفين'!$A9),'توزيع الموظفين'!$A$1:$C$86,3,0),\"\")","v":""},{"$f":"IFERROR(VLOOKUP(E$13&ROW('توزيع الموظفين'!$A9),'توزيع الموظفين'!$A$1:$C$86,3,0),\"\")","v":""},{"$f":"IFERROR(VLOOKUP(F$13&ROW('توزيع الموظفين'!$A9),'توزيع الموظفين'!$A$1:$C$86,3,0),\"\")","v":""}]